bitfinex-derivatives/quotes_SOLF0:USTF0_20250703
["timestamp","ask_amount","ask_price","bid_price","bid_amount"]
[1751551063791,9.73827477,154.96,154.87,7.00209054]
[1751551063792,5.15847477,154.96,154.91,7.00209054]
[1751551064186,5.15847477,154.96,154.9,120.62209054]
[1751551064892,11.0854,155.02,154.94,7.00209054]
[1751551065094,11.0854,155.02,154.9,113.62]
[1751551065095,11.63929054,155.02,154.95,51.62]
[1751551065894,4.6372,155.02,154.95,51.62]
[1751551066293,7.00209054,154.99,154.95,51.62]
[1751551066888,7.00209054,154.97,154.91,51.62]
[1751551067492,7.00209054,154.95,154.91,51.62]
[1751551068198,7.00209054,154.98,154.81,12.9131]
[1751551068199,7.00209054,154.92,154.87,51.6]
[1751551068401,7.00209054,154.92,154.85,51.6]
[1751551068696,2.2701,154.94,154.85,51.6]
[1751551068999,7.00209054,154.93,154.85,51.6]
[1751551069195,6.4526,154.91,154.87,6.454]
[1751551069393,7.00209054,154.93,154.85,51.6]
[1751551069899,7.00209054,154.93,154.89,6.453]
[1751551070499,2.3701,154.97,154.86,62.0]
[1751551070697,7.00209054,154.95,154.86,62.0]
[1751551070900,6.4518,154.93,154.86,62.0]
[1751551071094,7.00209054,154.91,154.85,51.6]
[1751551071899,13.45469054,154.91,154.85,51.6]
[1751551072093,7.00209054,154.91,154.85,51.6]
[1751551072302,7.00209054,154.91,154.81,7.00209054]
[1751551072495,7.00209054,154.89,154.82,51.6]
[1751551073204,7.00209054,154.89,154.84,6.4551]
[1751551073604,6.454,154.88,154.82,51.6]
[1751551073801,7.00209054,154.89,154.85,6.4547]
[1751551074002,6.4531,154.9,154.82,51.6]
[1751551074307,7.00209054,154.92,154.82,51.6]
[1751551074505,6.4536,154.89,154.82,51.6]
[1751551074705,7.00209054,154.92,154.82,51.6]
[1751551074906,7.00209054,154.92,154.85,6.455]
[1751551075096,7.00209054,154.9,154.82,51.6]
[1751551076201,6.4543,154.87,154.84,6.4551]
[1751551076395,7.00209054,154.88,154.82,51.6]
[1751551076800,7.00209054,154.9,154.82,51.6]
[1751551077005,5.37001536,154.89,154.82,51.6]
[1751551077200,11.82381536,154.88,154.84,6.455]
[1751551077404,2.3072,154.91,154.82,51.6]
[1751551077604,5.37561864,154.9,154.82,51.6]
[1751551077806,11.82911864,154.89,154.85,6.4547]
[1751551078110,9.30929054,154.91,154.82,51.6]
[1751551078307,5.37939882,154.9,154.82,51.6]
[1751551078508,9.30929054,154.91,154.82,51.6]
[1751551078704,7.00209054,154.93,154.83,7.00209054]
[1751551078905,6.4526,154.91,154.87,6.4538]
[1751551079107,7.00209054,154.93,154.83,7.00209054]
[1751551079302,7.00209054,154.93,154.86,6.4542]
[1751551079303,6.4532,154.9,154.86,6.4542]
[1751551079709,6.4532,154.9,154.83,69.00209054]
[1751551080012,6.4532,154.9,154.87,20.0]
[1751551080409,6.4526,154.91,154.87,20.0]
[1751551080607,5.38530303,154.9,154.87,20.0]
[1751551080803,6.4537,154.88,154.87,20.0]
[1751551081008,5.38538012,154.88,154.82,51.6]
[1751551081210,5.38538012,154.87,154.82,51.6]
[1751551081408,7.00209054,154.88,154.82,51.6]
[1751551081613,5.39006313,154.87,154.82,51.6]
[1751551081814,5.39006313,154.86,154.82,51.6]
[1751551082003,6.4545,154.87,154.82,51.6]
[1751551082207,5.39023753,154.86,154.83,6.4555]
[1751551082410,6.4549,154.86,154.83,6.4555]
[1751551082606,7.00209054,154.88,154.82,58.056]
[1751551082812,7.00209054,154.86,154.8,557.64]
[1751551083004,13.45679054,154.86,154.8,557.64]
[1751551083214,5.39543573,154.85,154.82,6.456]
[1751551083414,7.00209054,154.86,154.82,6.456]
[1751551083712,11.85141386,154.85,154.82,6.456]
[1751551084015,6.4552,154.85,154.82,6.456]
[1751551084510,6.4555,154.84,154.82,6.456]
[1751551084709,6.4555,154.84,154.81,6.4565]
[1751551084907,6.4555,154.84,154.8,557.64]
[1751551084908,7.00209054,154.86,154.8,557.64]
[1751551085113,5.3984859,154.85,154.8,557.64]
[1751551085311,7.00209054,154.86,154.8,557.64]
[1751551085515,2.1475,154.89,154.8,557.64]
[1751551085715,7.00498609,154.83,154.75,51.24]
[1751551085912,7.00498609,154.79,154.72,4.3973]
[1751551086112,7.00498609,154.77,154.71,608.96]
[1751551086618,2.3125,154.81,154.71,608.96]
[1751551086814,5.38813248,154.8,154.79,6.4575]
[1751551087120,7.00498609,154.83,154.79,6.4575]
[1751551087318,12.39791255,154.82,154.73,2.2261]
[1751551087512,7.00996787,154.8,154.73,2.2261]
[1751551087716,7.00996787,154.78,154.72,207.5559]
[1751551087916,6.4584,154.77,154.74,6.4593]
[1751551088116,7.00996787,154.78,154.71,608.96]
[1751551088514,7.00996787,154.78,154.74,6.4595]
[1751551088911,7.00996787,154.78,154.71,608.96]
[1751551089115,7.00996787,154.78,154.73,6.4597]
[1751551089319,7.00996787,154.78,154.71,608.96]
[1751551089922,13.46806787,154.78,154.71,608.96]
[1751551090125,6.4581,154.78,154.75,6.4589]
[1751551090618,13.46756787,154.79,154.75,6.4589]
[1751551090822,7.00996787,154.81,154.71,615.96996787]
[1751551091027,7.00996787,154.79,154.71,615.96996787]
[1751551091339,13.46756787,154.79,154.71,608.96]
[1751551091917,6.4579,154.78,154.71,608.96]
[1751551092117,7.00996787,154.79,154.71,608.96]
[1751551092822,6.4577,154.79,154.72,7.00996787]
[1751551093023,7.00996787,154.81,154.72,7.00996787]
[1751551093218,7.00996787,154.81,154.72,212.20996787]
[1751551093422,6.4582,154.78,154.72,205.2]
[1751551093726,7.00996787,154.81,154.76,6.4587]
[1751551093925,7.00996787,154.81,154.72,212.20996787]
[1751551094521,6.4572,154.8,154.72,7.00996787]
[1751551094921,7.00996787,154.81,154.76,6.4585]
[1751551095118,7.00996787,154.81,154.72,7.00996787]
[1751551095316,53.5525,154.85,154.75,6.4588]
[1751551095515,7.00996787,154.83,154.72,7.00996787]
[1751551095714,7.00996787,154.83,154.72,11.72106787]
[1751551096321,6.4573,154.8,154.77,6.4582]
[1751551096523,53.5525,154.85,154.72,11.72106787]
[1751551096717,6.4573,154.8,154.77,6.458]
[1751551097426,6.4574,154.8,154.72,11.72106787]
[1751551097621,53.5525,154.85,154.74,7.00996787]
[1751551097821,7.00996787,154.83,154.74,7.00996787]
[1751551098022,60.56246787,154.85,154.76,7.00996787]
[1751551098425,4.3943,154.87,154.78,7.00996787]
[1751551098426,9.15906787,154.87,154.78,7.00996787]
[1751551098729,9.15906787,154.87,154.8,6.4569]
[1751551098926,9.15906787,154.87,154.78,7.00996787]
[1751551099128,6.4556,154.84,154.8,6.4567]
[1751551099427,6.4556,154.84,154.78,7.00996787]
[1751551100025,7.00996787,154.83,154.76,51.26]
[1751551100228,7.00996787,154.81,154.72,55.9711]
[1751551100724,6.4577,154.79,154.72,55.9711]
[1751551100923,7.00996787,154.81,154.72,55.9711]
[1751551101128,7.00996787,154.79,154.72,51.26]
[1751551102231,7.01150249,154.81,154.72,51.26]
[1751551102527,6.4578,154.79,154.76,6.4587]
[1751551103523,6.4579,154.78,154.75,6.4589]
[1751551103724,7.01150249,154.79,154.72,51.26]
[1751551104223,6.4585,154.77,154.74,6.4593]
[1751551104423,7.01150249,154.77,154.72,51.26]
[1751551104624,7.01150249,154.75,154.68,51.26]
[1751551104825,7.01150249,154.73,154.64,55.6984]
[1751551105224,6.461,154.71,154.68,6.4618]
[1751551105727,6.461,154.71,154.64,55.6984]
[1751551106230,6.4606,154.72,154.64,55.6984]
[1751551107433,7.01876403,154.73,154.65,7.01876403]
[1751551108132,6.4606,154.72,154.68,6.4618]
[1751551108527,6.4609,154.71,154.68,6.4618]
[1751551108727,7.01876403,154.73,154.67,6.4622]
[1751551109031,6.4611,154.71,154.64,260.5584]
[1751551109331,6.4611,154.71,154.67,6.4621]
[1751551109533,2.2603,154.74,154.64,260.5584]
[1751551109730,2.2603,154.74,154.68,6.4617]
[1751551109926,2.2603,154.74,154.65,7.01876403]
[1751551110130,6.4609,154.71,154.65,7.01876403]
[1751551110332,6.4609,154.71,154.68,6.4617]
[1751551110633,7.01876403,154.73,154.64,267.57716403]
[1751551110930,6.4611,154.71,154.64,267.57716403]
[1751551111430,2.2603,154.74,154.66,7.01876403]
[1751551111630,2.2603,154.74,154.68,6.4618]
[1751551111937,6.4609,154.71,154.64,260.5584]
[1751551112133,6.4609,154.71,154.64,267.57716403]
[1751551112329,6.4609,154.71,154.68,6.462]
[1751551112534,7.01876403,154.73,154.64,267.57716403]
[1751551112737,6.4605,154.72,154.64,267.57716403]
[1751551113437,6.4605,154.72,154.69,6.4614]
[1751551113629,6.4601,154.73,154.64,267.57716403]
[1751551113829,9.27906403,154.74,154.66,7.01876403]
[1751551114029,9.27906403,154.74,154.68,6.4619]
[1751551114231,6.4605,154.72,154.66,7.01876403]
[1751551114434,6.4605,154.72,154.69,6.4612]
[1751551114734,9.27906403,154.74,154.64,267.57716403]
[1751551114935,2.2603,154.74,154.71,6.4606]
[1751551115138,5.32345183,154.77,154.7,7.01876403]
[1751551115330,2.2568,154.8,154.7,57.95876403]
[1751551116034,7.58100382,154.8,154.74,6.4592]
[1751551116935,7.01876403,154.79,154.7,57.95876403]
[1751551117133,7.01876403,154.79,154.7,50.94]
[1751551117335,7.01876403,154.77,154.72,6.4604]
[1751551117536,6.4592,154.75,154.7,50.94]
[1751551117937,6.4592,154.75,154.72,6.4603]
[1751551120738,7.01876403,154.67,154.6,50.94]
[1751551121738,6.4634,154.65,154.62,6.4643]
[1751551122335,6.4634,154.65,154.63,6.4641]
[1751551122545,6.4634,154.65,154.6,50.94]
[1751551122936,7.01876403,154.67,154.62,6.4643]
[1751551123537,6.4638,154.64,154.61,6.4648]
[1751551123840,6.4638,154.64,154.6,50.94]
[1751551124039,6.4646,154.62,154.6,50.94]
[1751551124238,7.01876403,154.65,154.6,50.94]
[1751551124433,7.01876403,154.65,154.56,53.2876]
[1751551124637,7.01876403,154.65,154.59,6.4656]
[1751551124838,7.01876403,154.63,154.55,558.18]
[1751551125035,6.4668,154.57,154.51,53.1585]
[1751551125231,7.01876403,154.57,154.47,560.4262]
[1751551125437,7.03425253,154.55,154.47,611.3862]
[1751551125835,7.03425253,154.55,154.47,2.1662]
[1751551126146,6.4703,154.49,154.44,6.4717]
[1751551126344,7.03425253,154.5,154.42,7.03425253]
[1751551126543,7.03425253,154.52,154.42,7.03425253]
[1751551126743,6.4695,154.51,154.47,6.4706]
[1751551126943,7.03425253,154.53,154.44,7.03425253]
[1751551127142,7.03425253,154.51,154.43,6.4722]
[1751551127335,7.03425253,154.49,154.4,53.257]
[1751551127835,7.03425253,154.49,154.38,206.6513]
[1751551127836,7.04111198,154.45,154.38,2.3313]
[1751551128041,7.04111198,154.45,154.36,609.3]
[1751551128236,7.04111198,154.41,154.32,50.98]
[1751551128743,7.04111198,154.43,154.33,7.04111198]
[1751551129145,7.04111198,154.41,154.33,7.04111198]
[1751551129343,7.04111198,154.41,154.32,50.98]
[1751551129344,7.04111198,154.41,154.35,6.4755]
[1751551129947,6.4741,154.4,154.35,6.4755]
[1751551130148,50.98,154.41,154.24,558.54]
[1751551130444,13.51631198,154.37,154.25,257.6696]
[1751551130645,7.04111198,154.37,154.28,7.04111198]
[1751551130846,6.4762,154.35,154.28,7.04111198]
[1751551131047,7.04111198,154.37,154.33,6.4766]
[1751551131345,7.04111198,154.37,154.26,1.12774645]
[1751551131550,7.04111198,154.33,154.25,2.3696]
[1751551131938,4.4072,154.35,154.25,2.3696]
[1751551132547,4.4072,154.35,154.3,6.4776]
[1751551133050,10.8831,154.35,154.3,6.4776]
[1751551133246,4.4072,154.35,154.25,2.3696]
[1751551133951,10.8831,154.35,154.25,2.3696]
[1751551134150,4.4072,154.35,154.25,2.3696]
[1751551134553,4.4072,154.35,154.29,6.4782]
[1751551134850,4.4072,154.35,154.25,2.3696]
[1751551135051,10.8831,154.35,154.25,2.3696]
[1751551135252,4.4072,154.35,154.25,2.3696]
[1751551135553,10.8831,154.35,154.3,6.4779]
[1751551135751,4.4072,154.35,154.25,2.3696]
[1751551136350,4.4072,154.35,154.24,558.54]
[1751551136351,12.01088523,154.33,154.24,558.54]
[1751551137250,12.01088523,154.33,154.25,6.38086362]
[1751551137445,12.01088523,154.33,154.24,558.54]
[1751551137654,2.1672,154.34,154.25,6.37507234]
[1751551137851,2.1672,154.34,154.27,12.01088523]
[1751551138050,2.1672,154.34,154.25,12.01088523]
[1751551138254,2.1672,154.34,154.24,560.8532]
[1751551139048,12.01088523,154.32,154.24,558.54]
[1751551139454,6.4781,154.3,154.26,6.4794]
[1751551139654,12.01088523,154.32,154.24,558.54]
[1751551139859,12.01088523,154.32,154.23,51.0]
[1751551140154,6.4781,154.3,154.26,6.4793]
[1751551140549,12.01088523,154.29,154.17,2.2802]
[1751551140756,50.74,154.31,154.19,12.01088523]
[1751551141156,50.74,154.31,154.22,12.01088523]
[1751551141367,50.74,154.31,154.23,50.74]
[1751551141655,12.01088523,154.33,154.23,50.74]
[1751551141656,12.01088523,154.33,154.28,6.4787]
[1751551142451,6.4772,154.32,154.28,6.4787]
[1751551143053,2.1672,154.34,154.25,12.01088523]
[1751551143556,8.6437,154.34,154.29,6.4781]
[1751551143751,8.6437,154.34,154.25,12.01088523]
[1751551143948,2.1672,154.34,154.25,12.01088523]
[1751551144750,8.6438,154.34,154.3,6.4779]
[1751551145255,2.1672,154.34,154.25,12.01088523]
[1751551145458,2.1672,154.34,154.24,2.3541]
[1751551145653,2.1672,154.34,154.24,14.36498523]
[1751551145852,6.4768,154.33,154.29,6.4781]
[1751551146248,2.1672,154.34,154.24,14.36498523]
[1751551146459,8.6438,154.34,154.26,12.01088523]
[1751551146660,50.74,154.39,154.29,12.01088523]
[1751551146958,50.74,154.4,154.29,12.01088523]
[1751551147359,6.4753,154.37,154.32,6.4769]
[1751551147863,12.01088523,154.39,154.32,6.4769]
[1751551148454,12.01088523,154.39,154.29,12.01088523]
[1751551148664,12.01088523,154.39,154.28,50.74]
[1751551148861,6.4758,154.36,154.32,6.4768]
[1751551149062,6.4758,154.36,154.28,50.74]
[1751551149361,6.4759,154.35,154.28,50.74]
[1751551149560,6.4759,154.35,154.31,6.4773]
[1751551149761,12.01088523,154.39,154.28,50.74]
[1751551150060,12.01088523,154.36,154.28,50.74]
[1751551150461,12.01088523,154.38,154.32,6.4769]
[1751551150860,12.01088523,154.38,154.28,50.74]
[1751551151055,12.01088523,154.38,154.32,6.4769]
[1751551151565,50.74,154.4,154.31,12.01088523]
[1751551151761,50.74,154.4,154.34,6.4761]
[1751551152161,50.74,154.4,154.31,12.01088523]
[1751551152360,4.6651,154.42,154.32,2.2213]
[1751551152662,4.6651,154.42,154.33,50.74]
[1751551152859,4.6651,154.42,154.36,6.4754]
[1751551153056,6.4742,154.4,154.36,6.4754]
[1751551153563,6.4738,154.4,154.37,6.475]
[1751551153863,6.4738,154.4,154.33,57.78627924]
[1751551154062,6.4743,154.39,154.33,57.78627924]
[1751551154263,7.04627924,154.4,154.33,50.74]
[1751551154466,2.3174,154.42,154.35,7.04627924]
[1751551155562,2.3174,154.42,154.38,6.4743]
[1751551155563,8.7906,154.42,154.38,6.4743]
[1751551155954,2.3174,154.42,154.35,7.04627924]
[1751551156259,7.03889472,154.5,154.41,7.03889472]
[1751551156453,7.03889472,154.5,154.39,50.74]
[1751551156664,6.4714,154.46,154.38,57.77889472]
[1751551156865,7.03889472,154.47,154.38,57.77889472]
[1751551157065,7.03889472,154.45,154.37,50.74]
[1751551157270,7.03889472,154.41,154.37,50.74]
[1751551157464,7.03889472,154.41,154.34,4.537]
[1751551157662,7.03889472,154.39,154.33,50.74]
[1751551158060,7.03889472,154.4,154.33,50.74]
[1751551158273,2.1495,154.43,154.33,50.74]
[1751551158468,7.03889472,154.4,154.33,50.74]
[1751551158767,7.03889472,154.4,154.35,6.4755]
[1751551159265,11.57219472,154.44,154.38,6.4743]
[1751551159266,2.2166,154.44,154.38,6.4743]
[1751551159466,2.2166,154.44,154.39,7.04631246]
[1751551159666,4.4662,154.5,154.41,7.04631246]
[1751551159667,55.2062,154.5,154.41,7.04631246]
[1751551159866,62.25251246,154.5,154.4,7.04631246]
[1751551160272,6.4716,154.46,154.42,6.4727]
[1751551160464,6.4716,154.46,154.4,7.04631246]
[1751551160665,55.2062,154.5,154.42,7.04631246]
[1751551160966,6.4705,154.48,154.42,7.04631246]
[1751551161369,6.4707,154.48,154.43,6.4725]
[1751551161567,6.4707,154.48,154.41,7.04631246]
[1751551161771,55.2062,154.5,154.4,11.41041246]
[1751551161971,7.04631246,154.49,154.4,11.41041246]
[1751551162268,62.25251246,154.5,154.4,9.21781246]
[1751551162471,6.4706,154.48,154.4,9.21781246]
[1751551162668,62.25251246,154.5,154.4,9.21781246]
[1751551162864,6.4704,154.48,154.45,6.4716]
[1751551163068,62.25251246,154.5,154.4,9.21781246]
[1751551163463,6.4707,154.48,154.44,6.4718]
[1751551163668,62.25251246,154.5,154.4,9.21781246]
[1751551164068,6.4703,154.49,154.4,9.21781246]
[1751551164266,53.0567,154.5,154.42,7.04631246]
[1751551164468,2.3309,154.51,154.48,6.4701]
[1751551164666,6.469,154.52,154.48,6.4701]
[1751551164966,6.469,154.52,154.44,57.76631246]
[1751551165271,50.72,154.54,154.45,7.04631246]
[1751551165465,4.4947,154.55,154.47,7.04631246]
[1751551165772,2.2386,154.55,154.47,7.04631246]
[1751551166070,8.7064,154.55,154.51,6.4688]
[1751551166274,2.2386,154.55,154.47,7.04631246]
[1751551166668,6.4686,154.53,154.49,6.4696]
[1751551166974,2.2386,154.55,154.47,7.04631246]
[1751551167566,6.4681,154.54,154.51,6.4691]
[1751551167765,9.28491246,154.55,154.45,2.3362]
[1751551167965,9.28491246,154.55,154.45,9.38251246]
[1751551168166,6.469,154.52,154.48,6.4704]
[1751551168366,6.469,154.52,154.45,9.38251246]
[1751551168768,9.28491246,154.55,154.45,9.38251246]
[1751551168769,6.4684,154.53,154.45,9.38251246]
[1751551168969,9.28491246,154.55,154.45,9.38251246]
[1751551168970,9.28491246,154.55,154.47,7.04631246]
[1751551169378,11.74052404,154.54,154.5,6.4694]
[1751551169570,5.27232404,154.53,154.46,7.0338062]
[1751551169869,2.2386,154.55,154.46,7.0338062]
[1751551170069,6.4687,154.53,154.5,6.4696]
[1751551170370,2.2386,154.55,154.5,6.4696]
[1751551170672,11.77511374,154.54,154.5,6.4696]
[1751551170872,5.30711374,154.53,154.5,6.4696]
[1751551171079,7.0338062,154.54,154.45,2.3362]
[1751551171273,5.30731358,154.53,154.45,2.3362]
[1751551171572,6.4689,154.52,154.49,6.4697]
[1751551171973,7.0338062,154.54,154.46,7.0338062]
[1751551172274,11.77623204,154.53,154.46,7.0338062]
[1751551172474,2.2386,154.55,154.46,7.0338062]
[1751551172679,5.30781207,154.54,154.46,7.0338062]
[1751551172878,5.30781207,154.53,154.5,6.4693]
[1751551173378,2.2386,154.55,154.5,6.4693]
[1751551173578,6.4683,154.53,154.5,6.4693]
[1751551173773,2.2386,154.55,154.49,6.4699]
[1751551173972,5.30618525,154.54,154.49,6.4699]
[1751551174173,6.4691,154.52,154.49,6.4699]
[1751551174569,2.2386,154.55,154.46,7.0338062]
[1751551174775,5.3045935,154.54,154.5,6.4693]
[1751551174975,12.3383997,154.54,154.46,7.0338062]
[1751551175171,5.30478937,154.53,154.48,6.4702]
[1751551175376,5.30478937,154.53,154.46,7.0338062]
[1751551175577,7.0338062,154.52,154.44,50.72]
[1751551175777,6.4699,154.5,154.44,50.72]
[1751551176179,6.4699,154.5,154.47,6.4705]
[1751551176379,6.4699,154.5,154.44,50.72]
[1751551177483,6.4693,154.51,154.44,50.72]
[1751551177783,7.0338062,154.54,154.45,7.0338062]
[1751551178079,2.2386,154.55,154.47,7.0338062]
[1751551178682,7.0338062,154.54,154.44,50.72]
[1751551178884,7.0338062,154.54,154.44,57.7538062]
[1751551179180,9.2724062,154.55,154.44,57.7538062]
[1751551179983,7.0338062,154.55,154.46,7.0338062]
[1751551180478,7.0338062,154.57,154.46,7.0338062]
[1751551181781,7.0338062,154.53,154.44,50.72]
[1751551182382,7.0338062,154.53,154.45,6.4716]
[1751551182580,7.03352406,154.57,154.47,7.03352406]
[1751551182787,50.42,154.58,154.49,7.03352406]
[1751551183084,13.49892406,154.6,154.51,7.03352406]
[1751551183284,7.03352406,154.6,154.51,7.03352406]
[1751551183685,7.03352406,154.61,154.51,7.03352406]
[1751551184083,124.0,154.8,154.53,7.03352406]
[1751551184287,7.03352406,154.66,154.55,7.03352406]
[1751551184485,7.03352406,154.64,154.54,52.6278]
[1751551184681,7.03352406,154.6,154.54,50.42]
[1751551185482,4.5264,154.61,154.54,50.42]
[1751551185686,11.55992406,154.61,154.54,50.42]
[1751551185985,7.03352406,154.59,154.54,50.42]
[1751551186287,7.03352406,154.59,154.5,52.6644]
[1751551186888,7.03352406,154.57,154.5,52.6644]
[1751551187883,18.439047,154.59,154.5,52.6644]
[1751551190392,11.973247,154.56,154.5,50.4]
[1751551191296,50.4,154.6,154.5,50.4]
[1751551192596,6.4659,154.59,154.5,50.4]
[1751551193498,11.973247,154.58,154.5,50.4]
[1751551194499,62.373247,154.6,154.5,50.4]
[1751551195202,50.4,154.6,154.5,50.4]
[1751551195400,11.973247,154.59,154.5,50.4]
[1751551195798,50.4,154.6,154.5,50.4]
[1751551196399,50.4,154.6,154.5,56.8696]
[1751551196805,16.499647,154.61,154.5,56.8696]
[1751551197204,4.5264,154.61,154.52,18.441947]
[1751551197402,4.5264,154.61,154.52,11.973247]
[1751551200205,4.5264,154.61,154.51,2.2496]
[1751551200407,16.499647,154.61,154.51,2.2496]
[1751551200703,4.5264,154.61,154.52,11.973247]
[1751551200909,2.2341,154.61,154.52,18.441947]
[1751551201412,2.2341,154.61,154.55,11.973247]
[1751551201608,11.973247,154.57,154.47,52.3278]
[1751551201809,2.2341,154.61,154.52,11.973247]
[1751551202109,11.973247,154.72,154.58,11.973247]
[1751551202311,6.8252,154.73,154.61,11.973247]
[1751551202606,6.8252,154.73,154.55,214.633247]
[1751551202607,11.973247,154.63,154.55,50.12]
[1751551202812,2.2878,154.62,154.55,50.12]
[1751551203014,2.2878,154.62,154.49,6.8281]
[1751551203402,2.2878,154.62,154.51,11.973247]
[1751551203605,11.973247,154.6,154.49,4.6019]
[1751551203813,2.2878,154.62,154.49,4.6019]
[1751551204016,18.439447,154.58,154.49,4.6019]
[1751551204208,11.973247,154.58,154.48,50.12]
[1751551204406,11.973247,154.55,154.48,50.12]
[1751551204613,18.441147,154.55,154.48,50.12]
[1751551204812,4.5374,154.57,154.48,50.12]
[1751551205002,11.973247,154.56,154.48,50.12]
[1751551205312,11.973247,154.53,154.48,50.12]
[1751551205509,11.973247,154.53,154.44,54.7219]
[1751551206515,11.973247,154.54,154.44,54.7219]
[1751551206708,2.2799,154.55,154.44,66.695147]
[1751551206908,2.2799,154.55,154.44,54.7219]
[1751551207108,11.973247,154.54,154.44,54.7219]
[1751551207310,14.253147,154.55,154.44,54.7219]
[1751551207505,2.2799,154.55,154.47,11.973247]
[1751551207715,2.2799,154.55,154.45,6.4716]
[1751551208113,2.2799,154.55,154.44,54.7219]
[1751551208313,2.2799,154.55,154.45,6.4714]
[1751551208514,11.973247,154.54,154.44,66.695147]
[1751551208706,2.2799,154.55,154.44,54.7219]
[1751551208905,14.253147,154.55,154.44,66.695147]
[1751551209110,20.721047,154.55,154.44,54.7219]
[1751551209311,14.253147,154.55,154.44,54.7219]
[1751551209610,20.720747,154.55,154.44,54.7219]
[1751551210916,14.253147,154.55,154.44,54.7219]
[1751551211117,2.2799,154.55,154.44,54.7219]
[1751551211316,8.03984366,154.6,154.49,18.442847]
[1751551211521,8.03984366,154.61,154.52,11.973247]
[1751551211708,11.973247,154.6,154.5,50.12]
[1751551212411,50.12,154.61,154.5,50.12]
[1751551212619,62.093247,154.61,154.5,50.12]
[1751551213409,18.439547,154.58,154.5,50.12]
[1751551215517,11.973247,154.55,154.45,2.227]
[1751551215817,11.973247,154.55,154.44,4.6019]
[1751551215818,11.973247,154.53,154.46,50.14]
[1751551216720,2.3378,154.55,154.46,50.14]
[1751551216920,11.973247,154.53,154.46,50.14]
[1751551217718,11.98299255,154.51,154.46,50.14]
[1751551217919,11.98815309,154.47,154.37,7.80753558]
[1751551218120,11.98815309,154.43,154.35,58.8945]
[1751551218322,11.98815309,154.43,154.35,52.4187]
[1751551218915,11.98815309,154.44,154.35,58.8945]
[1751551219224,50.14,154.47,154.37,11.98815309]
[1751551220020,50.14,154.47,154.35,52.4187]
[1751551220222,50.14,154.47,154.38,11.98815309]
[1751551220423,2.344,154.49,154.39,6.4742]
[1751551220620,2.344,154.49,154.39,8.7058]
[1751551220924,2.344,154.49,154.4,2.147]
[1751551221117,7.67326687,154.49,154.4,2.147]
[1751551221318,5.32884894,154.48,154.4,52.287]
[1751551221519,11.98332392,154.49,154.4,52.287]
[1751551221921,5.32781034,154.48,154.4,52.287]
[1751551222414,52.484,154.51,154.4,64.27032392]
[1751551222728,11.98332392,154.49,154.4,52.287]
[1751551222927,2.344,154.51,154.41,11.98332392]
[1751551223118,5.32652817,154.5,154.41,11.98332392]
[1751551223320,2.2293,154.55,154.47,18.4479322]
[1751551223519,5.32456343,154.54,154.48,50.14]
[1751551223724,4.5307,154.59,154.49,11.9771322]
[1751551223924,5.32343809,154.58,154.49,16.5692322]
[1751551224126,5.32343809,154.57,154.49,16.5692322]
[1751551224424,4.5307,154.59,154.49,16.5692322]
[1751551225024,5.34494782,154.58,154.49,16.5692322]
[1751551225223,4.5307,154.59,154.49,16.5692322]
[1751551225428,5.34453609,154.58,154.49,16.5692322]
[1751551227028,2.2293,154.59,154.49,23.0391322]
[1751551227228,5.34440956,154.6,154.52,11.9771322]
[1751551227426,5.34440956,154.59,154.52,11.9771322]
[1751551227624,66.6963322,154.63,154.52,11.9771322]
[1751551227928,5.34327836,154.62,154.53,61.9371322]
[1751551228528,11.9771322,154.61,154.53,49.96]
[1751551228729,11.9771322,154.58,154.49,4.5921]
[1751551228928,11.9771322,154.55,154.49,2.3605]
[1751551229630,11.9771322,154.57,154.49,2.3605]
[1751551229834,49.96,154.58,154.49,2.3605]